fUST/lending_fUST_20250615
["ID","MTS","AMOUNT","RATE_DAILY","PERIOD"]
[365858317,1749964236998,-228.39771863,0.00022191,4]
[365858318,1749964237006,-444.90438896,0.00022191,4]
[365858319,1749964237016,-460.0,0.00022191,4]
[365858320,1749964237025,-460.0,0.00022191,4]
[365858321,1749964237034,-460.0,0.00022191,4]
[365858322,1749964237043,-460.0,0.00022191,4]
[365858323,1749964237052,-460.0,0.00022191,4]
[365858324,1749964237061,-569.98013154,0.00022191,4]
[365858325,1749964237071,-2355.92,0.00022191,4]
[365858326,1749964237083,-460.0,0.00022191,4]
[365858327,1749964237092,-526.33314169,0.00022191,4]
[365858328,1749964237101,-400.0,0.00022191,4]
[365858329,1749964237110,-612.5,0.00022191,4]
[365858330,1749964237119,-460.0,0.00022191,4]
[365858331,1749964237129,-411.69350052,0.00022191,4]
[365858332,1749964237139,-370.0,0.00022191,4]
[365858333,1749964237148,-2273.23,0.00022191,4]
[365858334,1749964237159,-460.0,0.00022191,4]
[365858335,1749964237168,-440.0,0.00022191,4]
[365858336,1749964237177,-4012.33,0.00022191,4]
[365858337,1749964237186,-460.0,0.00022191,4]
[365858338,1749964237196,-3124.95,0.00022191,4]
[365858339,1749964237205,-452.54088076,0.00022191,4]
[365858340,1749964237214,-460.0,0.00022191,4]
[365858341,1749964237223,-460.0,0.00022191,4]
[365858342,1749964237233,-1058.98,0.00022191,4]
[365858343,1749964237242,-506.63457666,0.00022191,4]
[365858344,1749964237251,-460.0,0.00022191,4]
[365858345,1749964237260,-460.0,0.00022191,4]
[365858346,1749964237269,-460.0,0.00022191,4]
[365858347,1749964237279,-576.37,0.00022191,4]
[365858348,1749964237288,-460.0,0.00022191,4]
[365858349,1749964237297,-460.0,0.00022191,4]
[365858350,1749964237306,-460.0,0.00022191,4]
[365858351,1749964237316,-460.0,0.00022191,4]
[365858352,1749964237326,-460.0,0.00022191,4]
[365858353,1749964237336,-460.0,0.00022191,4]
[365858354,1749964237346,-1542.98,0.00022191,4]
[365858355,1749964237356,-460.0,0.00022191,4]
[365858356,1749964237366,-460.0,0.00022191,4]
[365858357,1749964237378,-391.50022909,0.00022191,4]
[365858358,1749964237390,-460.0,0.00022191,4]
[365858359,1749964237400,-420.0,0.00022191,4]
[365858360,1749964237410,-460.0,0.00022191,4]
[365858361,1749964237420,-1362.74,0.00022191,4]
[365858362,1749964237429,-525.69,0.00022191,4]
[365858363,1749964237439,-460.0,0.00022191,4]
[365858364,1749964237448,-460.0,0.00022191,4]
[365858365,1749964237457,-405.94409462,0.00022191,4]
[365858366,1749964237466,-460.0,0.00022191,4]
[365858367,1749964237476,-460.0,0.00022191,4]
[365858368,1749964237485,-460.0,0.00022191,4]
[365858369,1749964237494,-460.0,0.00022191,4]
[365858370,1749964237504,-581.62,0.00022191,4]
[365858371,1749964237513,-460.0,0.00022191,4]
[365858372,1749964237522,-487.92,0.00022191,4]
[365858373,1749964237532,-460.0,0.00022191,4]
[365858374,1749964237541,-460.0,0.00022191,4]
[365858375,1749964237551,-460.0,0.00022191,4]
[365858376,1749964237560,-460.0,0.00022191,4]
[365858377,1749964237569,-1342.52,0.00022191,4]
[365858378,1749964237578,-465.497221,0.00022191,4]
[365858379,1749964237588,-460.0,0.00022191,4]
[365858380,1749964237597,-1625.97,0.00022191,4]
[365858381,1749964237606,-460.0,0.00022191,4]
[365858382,1749964237615,-315.52765172,0.00022191,4]
[365858383,1749964237624,-460.0,0.00022191,4]
[365858384,1749964237633,-460.0,0.00022191,4]
[365858385,1749964237643,-460.0,0.00022191,4]
[365858386,1749964237652,-460.0,0.00022191,4]
[365858387,1749964237661,-460.0,0.00022191,4]
[365858388,1749964237671,-483.54959332,0.00022191,4]
[365858389,1749964237680,-460.0,0.00022191,4]
[365858390,1749964237690,-460.0,0.00022191,4]
[365858391,1749964237699,-2386.33,0.00022191,4]
[365858392,1749964237708,-460.0,0.00022191,4]
[365858393,1749964237716,-691.15,0.00022191,4]
[365858394,1749964237726,-525.33460416,0.00022191,4]
[365858395,1749964237735,-460.0,0.00022191,4]
[365858396,1749964237744,-460.0,0.00022191,4]
[365858397,1749964237753,-460.0,0.00022191,4]
[365858398,1749964237762,-460.0,0.00022191,4]
[365858399,1749964237772,-460.0,0.00022191,4]
[365858400,1749964237781,-460.0,0.00022191,4]
[365858401,1749964237791,-376.51758692,0.00022191,4]
[365858402,1749964237800,-460.0,0.00022191,4]
[365858403,1749964237809,-460.0,0.00022191,4]
[365858404,1749964237818,-460.0,0.00022191,4]
[365858405,1749964237827,-460.0,0.00022191,4]
[365858406,1749964237837,-984.0,0.00022191,4]
[365858407,1749964237846,-522.17912101,0.00022191,4]
[365858408,1749964237855,-460.0,0.00022191,4]
[365858409,1749964237864,-420.0,0.00022191,4]
[365858410,1749964237874,-460.0,0.00022191,4]
[365858411,1749964237883,-460.0,0.00022191,4]
[365858412,1749964237892,-460.0,0.00022191,4]
[365858413,1749964237901,-420.0,0.00022191,4]
[365858414,1749964237911,-460.0,0.00022191,4]
[365858415,1749964237919,-460.0,0.00022191,4]
[365858416,1749964237929,-3260.61,0.00022191,4]
[365858417,1749964237938,-460.0,0.00022191,4]
[365858418,1749964237947,-460.0,0.00022191,4]
[365858419,1749964237956,-1756.68,0.00022191,4]
[365858420,1749964237966,-874.72,0.00022191,4]
[365858421,1749964237975,-460.0,0.00022191,4]
[365858422,1749964237985,-460.0,0.00022191,4]
[365858423,1749964237995,-460.0,0.00022191,4]
[365858424,1749964238004,-460.0,0.00022191,4]
[365858425,1749964238013,-460.0,0.00022191,4]
[365858426,1749964238022,-460.0,0.00022191,4]
[365858427,1749964238031,-460.0,0.00022191,4]
[365858428,1749964238041,-460.0,0.00022191,4]
[365858429,1749964238050,-507.33,0.00022191,4]
[365858430,1749964238059,-814.84,0.00022191,4]
[365858431,1749964238068,-460.0,0.00022191,4]
[365858432,1749964238077,-460.0,0.00022191,4]
[365858433,1749964238091,-558.0,0.00022191,4]
[365858434,1749964238100,-460.0,0.00022191,4]
[365858435,1749964238109,-460.0,0.00022191,4]
[365858437,1749964238119,-2079.98,0.00022191,4]
[365858439,1749964238129,-420.0,0.00022191,4]
[365858440,1749964238137,-460.0,0.00022191,4]
[365858441,1749964238147,-460.0,0.00022191,4]
[365858442,1749964238156,-460.0,0.00022191,4]
[365858443,1749964238166,-460.0,0.00022191,4]
[365858444,1749964238176,-1483.75436952,0.00022314,7]
[365858445,1749964238185,-207.4,0.00022346,2]
[365858446,1749964238303,-12535.62630729,0.00022428,2]
[365858447,1749964238312,-229.86375354,0.00022428,2]
[365858448,1749964238321,-845.25843836,0.00022428,2]
[365858449,1749964238330,-160.0,0.00022428,2]
[365858450,1749964238339,-835.55256958,0.00022428,2]
[365858451,1749964238348,-160.0,0.00022428,2]
[365858452,1749964238358,-424.47602138,0.00022428,2]
[365858453,1749964238367,-1483.75436952,0.00022452,7]
[365858454,1749964238376,-500.4602774,0.00022465,4]
[365858455,1749964238386,-460.0,0.00022465,4]
[365858456,1749964238395,-460.0,0.00022465,4]
[365858457,1749964238406,-460.0,0.00022465,4]
[365858458,1749964238417,-409.25404557,0.00022465,4]
[365858459,1749964238426,-460.0,0.00022465,4]
[365858460,1749964238436,-460.0,0.00022465,4]
[365858461,1749964238445,-532.36945495,0.00022465,4]
[365858462,1749964238455,-460.0,0.00022465,4]
[365858463,1749964238464,-460.0,0.00022465,4]
[365858464,1749964238474,-187.84000442,0.00022465,4]
[365858465,1749964238484,-370.0,0.00022465,4]
[365858466,1749964238493,-460.0,0.00022465,4]
[365858467,1749964238503,-460.0,0.00022465,4]
[365858468,1749964238512,-484.39596981,0.00022465,4]
[365858469,1749964238522,-319.93764939,0.00022465,4]
[365858470,1749964238531,-460.0,0.00022465,4]
[365858471,1749964238541,-605.5395508,0.00022465,4]
[365858472,1749964238551,-460.0,0.00022465,4]
[365858473,1749964238560,-460.0,0.00022465,4]
[365858474,1749964238570,-507.14,0.00022465,4]
[365858475,1749964238580,-242.87259324,0.00022465,4]
[365858476,1749964238589,-460.0,0.00022465,4]
[365858477,1749964238599,-483.15,0.00022465,4]
[365858478,1749964238608,-460.0,0.00022465,4]
[365858479,1749964238617,-370.0,0.00022465,4]
[365858480,1749964238628,-460.0,0.00022465,4]
[365858481,1749964238637,-460.0,0.00022465,4]
[365858482,1749964238647,-370.0,0.00022465,4]
[365858483,1749964238660,-743.45,0.00022465,4]
[365858484,1749964238670,-460.0,0.00022465,4]
[365858485,1749964238680,-460.0,0.00022465,4]
[365858486,1749964238691,-458.0545317,0.00022465,4]
[365858487,1749964238702,-460.0,0.00022465,4]
[365858488,1749964238712,-460.0,0.00022465,4]
[365858489,1749964238722,-246.99922726,0.00022465,4]
[365858490,1749964238732,-424.99,0.00022465,4]
[365858491,1749964238742,-543.66007297,0.00022465,4]
[365858492,1749964238752,-460.0,0.00022465,4]
[365858493,1749964238762,-460.0,0.00022465,4]
[365858494,1749964238772,-400.0,0.00022465,4]
[365858495,1749964238781,-574.0,0.00022465,4]
[365858496,1749964238790,-460.0,0.00022465,4]
[365858497,1749964238800,-460.0,0.00022465,4]
[365858498,1749964238810,-380.0,0.00022465,4]
[365858499,1749964238820,-462.23225103,0.00022465,4]
[365858500,1749964238829,-370.0,0.00022465,4]
[365858501,1749964238838,-1356.93,0.00022465,4]
[365858503,1749964238847,-246.97552651,0.00022465,4]
[365858507,1749964238978,-213.02447349,0.00022465,4]
[365858508,1749964238987,-460.0,0.00022465,4]
[365858509,1749964238997,-460.0,0.00022465,4]
[365858510,1749964239006,-507.06,0.00022465,4]
[365858511,1749964239015,-460.0,0.00022465,4]
[365858512,1749964239024,-460.0,0.00022465,4]
[365858513,1749964239033,-108.63982004,0.00022465,2]
[365858514,1749964239045,-351.36017996,0.00022465,2]
[365858515,1749964239055,-554.18,0.00022465,4]
[365858516,1749964239064,-1510.68,0.00022465,4]
[365858517,1749964239074,-460.0,0.00022465,4]
[365858518,1749964239090,-460.0,0.00022465,4]
[365858519,1749964239100,-460.0,0.00022465,4]
[365858520,1749964239110,-460.0,0.00022465,4]
[365858521,1749964239119,-460.0,0.00022465,4]
[365858522,1749964239128,-460.0,0.00022465,4]
[365858523,1749964239137,-151.0,0.00022465,7]
[365858524,1749964239146,-460.0,0.00022465,4]
[365858525,1749964239158,-151.0,0.00022465,7]
[365858526,1749964239167,-2355.92,0.00022465,4]
[365858527,1749964239177,-460.0,0.00022465,4]
[365858528,1749964239186,-612.5,0.00022465,4]
[365858529,1749964239195,-460.0,0.00022465,4]
[365858530,1749964239204,-2273.23,0.00022465,4]
[365858531,1749964239213,-460.0,0.00022465,4]
[365858532,1749964239223,-4012.33,0.00022465,4]
[365858533,1749964239232,-460.0,0.00022465,4]
[365858534,1749964239241,-3124.95,0.00022465,4]
[365858535,1749964239250,-460.0,0.00022465,4]
[365858536,1749964239259,-460.0,0.00022465,4]
[365858537,1749964239268,-1058.98,0.00022465,4]
[365858538,1749964239277,-370.0,0.00022465,4]
[365858539,1749964239286,-460.0,0.00022465,4]
[365858540,1749964239295,-325.68118866,0.00022465,4]
[365858541,1749964239305,-576.37,0.00022465,4]
[365858542,1749964239314,-460.0,0.00022465,4]
[365858543,1749964239323,-400.0,0.00022465,4]
[365858544,1749964239332,-460.0,0.00022465,4]
[365858545,1749964239342,-400.0,0.00022465,4]
[365858547,1749964239353,-460.0,0.00022465,4]
[365858549,1749964239363,-460.0,0.00022465,4]
[365858551,1749964239372,-1542.98,0.00022465,4]
[365858553,1749964239381,-460.0,0.00022465,4]
[365858555,1749964239391,-460.0,0.00022465,4]
[365858556,1749964239400,-460.0,0.00022465,4]
[365858557,1749964239409,-460.25439007,0.00022465,4]
[365858558,1749964239418,-1362.74,0.00022465,4]
[365858559,1749964239427,-525.69,0.00022465,4]
[365858560,1749964239437,-460.0,0.00022465,4]
[365858561,1749964239447,-460.0,0.00022465,4]
[365858563,1749964239457,-460.0,0.00022465,4]
[365858565,1749964239466,-460.0,0.00022465,4]
[365858567,1749964239475,-460.0,0.00022465,4]
[365858569,1749964239485,-460.0,0.00022465,4]
[365858571,1749964239495,-581.62,0.00022465,4]
[365858573,1749964239505,-396.98160023,0.00022465,4]
[365858575,1749964239515,-487.92,0.00022465,4]
[365858577,1749964239524,-460.0,0.00022465,4]
[365858579,1749964239533,-370.0,0.00022465,4]
[365858581,1749964239543,-460.0,0.00022465,4]
[365858583,1749964239552,-460.0,0.00022465,4]
[365858585,1749964239561,-1342.52,0.00022465,4]
[365858587,1749964239571,-387.91429523,0.00022465,4]
[365858589,1749964239580,-1625.97,0.00022465,4]
[365858591,1749964239589,-460.0,0.00022465,4]
[365858593,1749964239599,-460.0,0.00022465,4]
[365858595,1749964239608,-460.0,0.00022465,4]
[365858597,1749964239617,-460.0,0.00022465,4]
[365858598,1749964239626,-440.0,0.00022465,4]
[365858600,1749964239635,-460.0,0.00022465,4]
[365858602,1749964239645,-400.0,0.00022465,4]
[365858604,1749964239654,-460.0,0.00022465,4]
[365858606,1749964239663,-2386.33,0.00022465,4]
[365858608,1749964239672,-494.58468898,0.00022465,4]
[365858610,1749964239682,-691.15,0.00022465,4]
[365858612,1749964239698,-460.0,0.00022465,4]
[365858614,1749964239707,-411.34292989,0.00022465,4]
[365858616,1749964239716,-430.0,0.00022465,4]
[365858618,1749964239726,-460.0,0.00022465,4]
[365858620,1749964239735,-460.0,0.00022465,4]
[365858622,1749964239745,-22.09840304,0.00022465,4]
[365858630,1749964239809,-255.6404125,0.00021917,4]
[365858664,1749964240192,-204.3595875,0.00021917,4]
[365858667,1749964240202,-460.0,0.00021917,4]
[365858669,1749964240212,-460.0,0.00021917,4]
[365858670,1749964240222,-127.023244,0.00022191,4]
[365858961,1749964243074,-420.976198,0.00021917,4]
[365859526,1749964252061,-39.023802,0.00021917,4]
[365859529,1749964252087,-126.86397893,0.00021917,4]
[365859598,1749964762590,-206.65355048,0.00020365,2]
[365859599,1749964847380,-199.12403609,0.00020749,2]
[365859600,1749964853878,-213.98138953,0.00020749,2]
[365859604,1749965025363,218.447607,0.00013699,2]
[365859605,1749965068122,-218.447607,0.00020187,2]
[365859606,1749965068144,-46.552393,0.00020365,2]
[365859611,1749965238093,-103.447607,0.00020365,2]
[365859612,1749965238114,-179.471337,0.00020504,2]
[365859613,1749965238134,-29.77319268,0.00020749,2]
[365859614,1749965238156,-315.2323362,0.00020778,2]
[365859615,1749965241125,-672.1883189,0.00020778,2]
[365859616,1749965241147,-300.0,0.00020818,2]
[365859617,1749965241168,-7394.49125125,0.00020819,2]
[365859618,1749965246091,-584.30303848,0.00020819,2]
[365859619,1749965252079,-355.89736122,0.00020819,2]
[365859620,1749965253113,-1686.61548382,0.00020819,2]
[365859637,1749965360671,1000.0,0.00024,120]
[365859638,1749965362706,63.72700709,0.000189,2]
[365859639,1749965362728,86.27299291,0.000189,2]
[365859641,1749965395143,1000.0,0.000244,120]
[365859666,1749965432460,-1000.0,0.0002,2]
[365859668,1749965432470,-757.52194553,0.00020819,2]
[365859670,1749965432480,-415.9010358,0.00020829,2]
[365859672,1749965432489,-500.0,0.00020964,2]
[365859674,1749965432499,-300.0,0.00020999,2]
[365859676,1749965432508,-4552.64253355,0.00021,5]
[365859678,1749965432520,-1457.91410439,0.00021,5]
[365859687,1749965432593,-1374.95308181,0.00021,5]
[365859694,1749965432655,-2614.49028025,0.00021,5]
[365859696,1749965432664,-201.9555179,0.00021084,2]
[365859698,1749965432674,-444.0,0.00021683,2]
[365859700,1749965432683,-1945.16,0.00021768,2]
[365859702,1749965432692,-197.5847232,0.00021808,2]
[365859704,1749965432701,-2000.0,0.0002181,2]
[365859706,1749965432710,-500.0,0.00021816,2]
[365859708,1749965432720,-500.0,0.00021816,2]
[365859710,1749965432729,-500.0,0.00021816,2]
[365859713,1749965432739,-517.73486333,0.00021816,2]
[365859715,1749965432749,-500.0,0.00021816,2]
[365859716,1749965432758,-174.09131493,0.00021816,2]
[365859718,1749965432767,-596.09467366,0.00021816,2]
[365859721,1749965432777,-438.27162181,0.00021816,2]
[365859723,1749965432786,-500.0,0.00021816,2]
[365859725,1749965432796,-428.80848131,0.00021816,2]
[365859727,1749965432805,-500.0,0.00021816,2]
[365859729,1749965432815,-500.0,0.00021816,2]
[365859731,1749965432824,-500.0,0.00021816,2]
[365859733,1749965432834,-500.0,0.00021816,2]
[365859735,1749965432843,-627.68745553,0.00021816,2]
[365859737,1749965432852,-631.12888163,0.00021816,2]
[365859739,1749965432862,-500.0,0.00021816,2]
[365859741,1749965432872,-500.0,0.00021816,2]
[365859743,1749965432881,-500.0,0.00021816,2]
[365859745,1749965432890,-500.0,0.00021816,2]
[365859747,1749965432900,-500.0,0.00021816,2]
[365859749,1749965432909,-500.0,0.00021816,2]
[365859751,1749965432918,-500.0,0.00021816,2]
[365859753,1749965432928,-338.47112456,0.00021816,2]
[365859755,1749965432937,-500.0,0.00021816,2]
[365859757,1749965432946,-405.20290958,0.00021816,2]
[365859759,1749965432956,-333.88542468,0.00021817,2]
[365859761,1749965432966,-3036.60263499,0.00021817,2]
[365859763,1749965432975,-1693.29982174,0.000219,6]
[365859765,1749965432985,-434.22,0.00021907,3]
[365859767,1749965432994,-300.0,0.00021908,2]
[365859769,1749965433003,-1003.74801464,0.00021915,2]
[365859771,1749965433013,-500.0,0.00021916,2]
[365859773,1749965433023,-182.184,0.00021916,2]
[365859775,1749965433033,-179.12361884,0.00021916,2]
[365859777,1749965433043,-261.97055667,0.00021916,2]
[365859779,1749965433054,-1539.91527485,0.00021916,2]
[365859781,1749965433063,-1539.91527485,0.00021916,2]
[365859783,1749965433073,-1539.91527485,0.00021916,2]
[365859785,1749965433082,-1539.91527485,0.00021916,2]
[365859787,1749965433092,-1539.91527485,0.00021916,2]
[365859789,1749965433101,-1539.91527485,0.00021916,2]
[365859791,1749965433111,-1539.91527485,0.00021916,2]
[365859793,1749965433120,-1539.91527485,0.00021916,2]
[365859795,1749965433130,-1539.91527485,0.00021916,2]
[365859797,1749965433139,-1539.91527485,0.00021916,2]
[365859799,1749965433148,-1539.91527485,0.00021916,2]
[365859801,1749965433157,-1539.91527485,0.00021916,2]
[365859803,1749965433166,-1539.91527485,0.00021916,2]
[365859805,1749965433176,-1539.91527485,0.00021916,2]
[365859807,1749965433185,-1539.91527485,0.00021916,2]
[365859809,1749965433194,-1539.91527485,0.00021916,2]
[365859811,1749965433203,-1539.91527485,0.00021916,2]
[365859813,1749965433212,-1539.91527485,0.00021916,2]
[365859815,1749965433221,-1539.91527485,0.00021916,2]
[365859817,1749965433231,-1539.91527485,0.00021916,2]
[365859819,1749965433241,-1849.38969635,0.00021916,2]
[365859821,1749965433250,-1849.38969635,0.00021916,2]
[365859823,1749965433260,-1849.38969635,0.00021916,2]
[365859825,1749965433269,-1849.38969635,0.00021916,2]
[365859826,1749965433278,-1849.38969635,0.00021916,2]
[365859828,1749965433288,-1849.38969635,0.00021916,2]
[365859829,1749965433298,-1849.38969635,0.00021916,2]
[365859830,1749965433307,-1849.38969635,0.00021916,2]
[365859831,1749965433316,-1849.38969635,0.00021916,2]
[365859832,1749965433325,-392.06314082,0.00021917,4]
[365859833,1749965433335,-254.60910511,0.00021917,4]
[365859834,1749965433344,-430.0,0.00021917,4]
[365859835,1749965433353,-500.0,0.00021917,4]
[365859836,1749965433363,-500.0,0.00021917,4]
[365859837,1749965433372,-500.0,0.00021917,4]
[365859838,1749965433381,-500.0,0.00021917,4]
[365859839,1749965433390,-500.0,0.00021917,4]
[365859840,1749965433399,-430.0,0.00021917,4]
[365859841,1749965433408,-430.0,0.00021917,4]
[365859842,1749965433417,-460.0,0.00021917,4]
[365859843,1749965433427,-430.0,0.00021917,4]
[365859844,1749965433437,-430.0,0.00021917,4]
[365859845,1749965433446,-430.0,0.00021917,4]
[365859846,1749965433456,-430.0,0.00021917,4]
[365859847,1749965433465,-430.0,0.00021917,4]
[365859848,1749965433475,-440.0,0.00021917,4]
[365859850,1749965433484,-430.0,0.00021917,4]
[365859852,1749965433494,-430.0,0.00021917,4]
[365859854,1749965433503,-460.0,0.00021917,4]
[365859865,1749965433651,-430.0,0.00021917,4]
[365859867,1749965433661,-460.0,0.00021917,4]
[365859869,1749965433671,-344.28995489,0.00021917,4]
[365859871,1749965433680,-460.0,0.00021917,4]
[365859873,1749965433690,-430.0,0.00021917,4]
[365859875,1749965433699,-454.75748056,0.00021917,4]
[365859877,1749965433708,-439.36262788,0.00021917,4]
[365859878,1749965433717,-430.0,0.00021917,4]
[365859879,1749965433726,-460.0,0.00021917,4]
[365859880,1749965433735,-460.0,0.00021917,4]
[365859881,1749965433745,-440.0,0.00021917,4]
[365859882,1749965433754,-273.33850429,0.00021917,4]
[365859883,1749965433764,-445.82414822,0.00021917,4]
[365859884,1749965433775,-460.0,0.00021917,4]
[365859885,1749965433785,-405.30714718,0.00021917,4]
[365859886,1749965433795,-460.0,0.00021917,4]
[365859887,1749965433805,-404.37876923,0.00021917,4]
[365859888,1749965433815,-460.0,0.00021917,4]
[365859889,1749965433824,-430.0,0.00021917,4]
[365859890,1749965433834,-453.07188305,0.00021917,4]
[365859891,1749965433844,-460.0,0.00021917,4]
[365859892,1749965433854,-431.14606688,0.00021917,4]
[365859893,1749965433864,-460.0,0.00021917,4]
[365859894,1749965433874,-460.0,0.00021917,4]
[365859895,1749965433883,-460.0,0.00021917,4]
[365859896,1749965433893,-430.0,0.00021917,4]
[365859897,1749965433902,-460.0,0.00021917,4]
[365859898,1749965433912,-254.56665283,0.00021917,4]
[365859899,1749965433921,-439.85044968,0.00021917,4]
[365859900,1749965433931,-460.0,0.00021917,4]
[365859901,1749965433941,-440.0,0.00021917,4]
[365859902,1749965433951,-436.85540727,0.00021917,4]
[365859903,1749965433961,-460.0,0.00021917,4]
[365859904,1749965433971,-440.0,0.00021917,4]
[365859905,1749965433980,-398.01778628,0.00021917,4]
[365859906,1749965433990,-460.0,0.00021917,4]
[365859907,1749965433999,-443.19302072,0.00021917,4]
[365859908,1749965434009,-460.0,0.00021917,4]
[365859909,1749965434019,-435.18584726,0.00021917,4]
[365859910,1749965434029,-430.0,0.00021917,4]
[365859911,1749965434039,-460.0,0.00021917,4]
[365859912,1749965434049,-410.5081298,0.00021917,4]
[365859913,1749965434059,-460.0,0.00021917,4]
[365859914,1749965434069,-440.0,0.00021917,4]
[365859915,1749965434078,-460.0,0.00021917,4]
[365859916,1749965434087,-460.0,0.00021917,4]
[365859917,1749965434097,-452.15522675,0.00021917,4]
[365859918,1749965434107,-204.72749902,0.00021917,4]
[365859919,1749965434117,-470.0,0.00021917,4]
[365859920,1749965434126,-561.46362119,0.00021917,2]
[365859921,1749965434136,-430.0,0.00021917,4]
[365859922,1749965434145,-430.0,0.00021917,4]
[365859923,1749965434155,-460.0,0.00021917,4]
[365859924,1749965434165,-440.0,0.00021917,4]
[365859925,1749965434175,-460.0,0.00021917,4]
[365859926,1749965434186,-420.0,0.00021917,4]
[365859927,1749965434196,-430.0,0.00021917,4]
[365859928,1749965434206,-460.0,0.00021917,4]
[365859929,1749965434216,-440.0,0.00021917,4]
[365859930,1749965434226,-460.0,0.00021917,4]
[365859931,1749965434236,-440.0,0.00021917,4]
[365859932,1749965434245,-442.89870059,0.00021917,4]
[365859933,1749965434255,-430.0,0.00021917,4]
[365859934,1749965434264,-440.0,0.00021917,4]
[365859935,1749965434275,-438.72849273,0.00021917,4]
[365859936,1749965434284,-440.0,0.00021917,4]
[365859937,1749965434294,-452.64615683,0.00021917,4]
[365859938,1749965434303,-178.08582138,0.00021917,4]
[365859939,1749965434312,-433.633589,0.00021917,4]
[365859940,1749965434321,-370.0,0.00021917,4]
[365859941,1749965434330,-436.12224117,0.00021917,4]
[365859942,1749965434340,-163.12026565,0.00021917,4]
[365859943,1749965434349,-430.0,0.00021917,4]
[365859944,1749965434358,-441.26854018,0.00021917,4]
[365859945,1749965434367,-440.0,0.00021917,4]
[365859946,1749965434376,-459.35411922,0.00021917,4]
[365859947,1749965434386,-460.0,0.00021917,4]
[365859948,1749965434395,-442.02462515,0.00021917,4]
[365859949,1749965434404,-443.03961644,0.00021917,4]
[365859950,1749965434413,-432.51293503,0.00021917,4]
[365859951,1749965434423,-348.33069632,0.00021917,4]
[365859952,1749965434432,-440.0,0.00021917,4]
[365859953,1749965434442,-440.0,0.00021917,4]
[365859954,1749965434451,-440.0,0.00021917,4]
[365859955,1749965434460,-460.0,0.00021917,4]
[365859956,1749965434469,-460.0,0.00021917,4]
[365859957,1749965434478,-440.0,0.00021917,4]
[365859958,1749965434488,-440.0,0.00021917,4]
[365859959,1749965434497,-440.0,0.00021917,4]
[365859960,1749965434506,-374.24955741,0.00021917,4]
[365859961,1749965434514,-507.1121519,0.00021917,4]
[365859962,1749965434525,-449.84844117,0.00021917,4]
[365859963,1749965434534,-451.19276933,0.00021917,4]
[365859964,1749965434543,-1008.85659759,0.00021917,4]
[365859965,1749965434553,-460.0,0.00021917,4]
[365859966,1749965434563,-460.0,0.00021917,4]
[365859967,1749965434575,-446.83519726,0.00021917,4]
[365859968,1749965434584,-460.0,0.00021917,4]
[365859969,1749965434593,-433.19812214,0.00021917,4]
[365859970,1749965434603,-460.0,0.00021917,4]
[365859971,1749965434614,-454.65834007,0.00021917,4]
[365859972,1749965434624,-440.0,0.00021917,4]
[365859973,1749965434633,-440.0,0.00021917,4]
[365859974,1749965434643,-424.99006563,0.00021917,4]
[365859975,1749965434653,-460.0,0.00021917,4]
[365859976,1749965434662,-460.0,0.00021917,4]
[365859977,1749965434671,-455.85448324,0.00021917,4]
[365859978,1749965434680,-443.41047663,0.00021917,4]